fUST/lending_fUST_20250308
["ID","MTS","AMOUNT","RATE_DAILY","PERIOD"]
[355650117,1741435839957,-275.351796,0.0004832,120]
[355650118,1741435839967,-151.0,0.0004832,120]
[355650119,1741435839976,-151.0,0.0004832,120]
[355650120,1741435839985,-1000.0,0.00048321,6]
[355650121,1741435839995,-242.98704918,0.00048325,120]
[355650122,1741435840005,-13754.84127443,0.0004838,120]
[355650123,1741435840014,-151.0,0.0004838,120]
[355650124,1741435840023,-151.0,0.0004838,120]
[355650125,1741435840033,-151.0,0.0004838,120]
[355650126,1741435840042,-216.733488,0.0004838,120]
[355650128,1741435840052,-275.351796,0.0004839,120]
[355650129,1741435840062,-275.351796,0.0004839,120]
[355650130,1741435840071,-151.0,0.000484,120]
[355650131,1741435840081,-151.0,0.000484,120]
[355650132,1741435840090,-151.0,0.000484,120]
[355650133,1741435840099,-151.983922,0.000484,120]
[355650134,1741435840108,-151.0,0.000484,120]
[355650135,1741435840117,-151.0,0.000484,90]
[355650136,1741435840127,-151.0,0.000484,110]
[355650137,1741435840140,-151.0,0.000484,120]
[355650138,1741435840150,-157.845587,0.000484,120]
[355650139,1741435840160,-1331.302269,0.000484,3]
[355650140,1741435840169,-1331.302269,0.000484,3]
[355650141,1741435840179,-1551.426964,0.000484,120]
[355650142,1741435840189,-1551.426964,0.000484,120]
[355650143,1741435840198,-1551.426964,0.000484,120]
[355650145,1741435840207,-1551.426964,0.000484,120]
[355650146,1741435840217,-151.0,0.000484,120]
[355650148,1741435840227,-282.82087,0.000484,120]
[355650150,1741435840236,-3000.0,0.000484,2]
[355650152,1741435840246,-275.351796,0.000484,120]
[355650154,1741435840255,-275.351796,0.000484,120]
[355650157,1741435840265,-11123.72402163,0.000484,2]
[355650159,1741435840274,-635.891438,0.0004841,120]
[355650161,1741435840284,-151.0,0.0004841,120]
[355650163,1741435840293,-500.0,0.00048412,92]
[355650165,1741435840303,-13754.84127443,0.0004842,120]
[355650167,1741435840313,-13754.84127443,0.0004842,120]
[355650169,1741435840322,-151.0,0.0004842,120]
[355650179,1741435840412,-275.351796,0.0004842,120]
[355650181,1741435840422,-275.351796,0.0004842,120]
[355650183,1741435840432,-635.89143,0.0004842,120]
[355650185,1741435840442,-151.0,0.0004842,120]
[355650187,1741435840455,-200.0,0.00048424,120]
[355650189,1741435840465,-1000.0,0.00048458,6]
[355650191,1741435840475,-151.0,0.0004847,120]
[355650193,1741435840486,-502.63650637,0.00048473,10]
[355650195,1741435840497,-500.0,0.00048473,10]
[355650197,1741435840507,-500.0,0.00048473,10]
[355650199,1741435840517,-224.633455,0.00048473,110]
[355650201,1741435840527,-1331.302269,0.00048473,3]
[355650203,1741435840537,-1331.302269,0.00048473,3]
[355650205,1741435840547,-1551.426964,0.00048473,120]
[355650207,1741435840556,-1551.426964,0.00048473,120]
[355650209,1741435840566,-275.351796,0.00048473,120]
[355650211,1741435840575,-275.351796,0.00048473,120]
[355650212,1741435840584,-151.0,0.0004848,120]
[355650213,1741435840594,-151.0,0.0004848,120]
[355650214,1741435840603,-13754.84127443,0.0004848,120]
[355650215,1741435840612,-13754.84127443,0.0004848,120]
[355650216,1741435840622,-1331.302269,0.0004848,3]
[355650217,1741435840631,-1331.302269,0.0004848,3]
[355650218,1741435840640,-1551.426964,0.0004848,120]
[355650219,1741435840649,-1551.426964,0.0004848,120]
[355650220,1741435840659,-151.0,0.0004848,120]
[355650221,1741435840668,-275.351796,0.0004848,120]
[355650222,1741435840678,-275.351796,0.0004848,120]
[355650223,1741435840688,-275.351796,0.0004848,120]
[355650224,1741435840697,-275.351796,0.0004848,120]
[355650225,1741435840706,-416.66666667,0.0004848,3]
[355650226,1741435840716,-151.0,0.0004849,120]
[355650227,1741435840728,-200.348043,0.0004849,120]
[355650228,1741435840737,-151.0,0.0004849,120]
[355650229,1741435840746,-156.233894,0.0004849,120]
[355650230,1741435840755,-178.108394,0.0004849,120]
[355650231,1741435840766,-151.0,0.0004849,120]
[355650232,1741435840775,-151.0,0.0004849,120]
[355650233,1741435840783,-151.0,0.0004849,30]
[355650234,1741435840793,-151.0,0.0004849,120]
[355650235,1741435840803,-151.0,0.0004849,120]
[355650236,1741435840812,-151.0,0.0004849,120]
[355650237,1741435840822,-155.118598,0.0004849,120]
[355650238,1741435840833,-155.118598,0.0004849,120]
[355650240,1741435840842,-151.0,0.0004849,120]
[355650241,1741435840851,-1331.302269,0.0004849,3]
[355650243,1741435840861,-1331.302269,0.0004849,3]
[355650246,1741435840871,-291.148032,0.0004849,120]
[355650247,1741435840881,-1551.426964,0.0004849,120]
[355650249,1741435840890,-1551.426964,0.0004849,120]
[355650252,1741435840901,-275.351796,0.0004849,120]
[355650254,1741435840911,-275.3518,0.0004849,120]
[355650256,1741435840920,-500000.0,0.000485,120]
[355650258,1741435840929,-836.36,0.000485,30]
[355650260,1741435840939,-1064.3,0.000485,30]
[355650262,1741435840948,-165.783066,0.000485,120]
[355650264,1741435840957,-151.0,0.000485,120]
[355650266,1741435840966,-151.0,0.000485,120]
[355650268,1741435840975,-151.0,0.000485,120]
[355650270,1741435840984,-178.32748,0.000485,30]
[355650271,1741435840994,-155.146904,0.000485,120]
[355650273,1741435841003,-198.401401,0.000485,120]
[355650275,1741435841014,-151.0,0.000485,120]
[355650277,1741435841024,-155.118598,0.000485,120]
[355650279,1741435841033,-155.118598,0.000485,120]
[355650281,1741435841042,-1000.0,0.000485,2]
[355650283,1741435841051,-151.0,0.000485,120]
[355650285,1741435841060,-1331.302269,0.000485,3]
[355650287,1741435841070,-1331.302269,0.000485,3]
[355650290,1741435841079,-1551.426964,0.000485,120]
[355650292,1741435841089,-1551.426964,0.000485,120]
[355650293,1741435841098,-500.0,0.00048512,91]
[355650295,1741435841107,-200.0,0.00048514,120]
[355650297,1741435841117,-2771.25649515,0.00048516,120]
[355650299,1741435841126,-200.0,0.00048516,120]
[355650301,1741435841136,-2771.25649515,0.00048523,120]
[355650303,1741435841145,-2771.25649515,0.00048525,120]
[355650305,1741435841154,-200.0,0.00048527,120]
[355650307,1741435841163,-2771.25649515,0.00048531,120]
[355650309,1741435841172,-8183.82376621,0.0004854,120]
[355650311,1741435841181,-8183.82376621,0.00048543,120]
[355650313,1741435841190,-200.0,0.00048576,120]
[355650315,1741435841199,-8183.82376621,0.00048583,120]
[355650317,1741435841209,-1000.0,0.00048595,6]
[355650319,1741435841218,-8183.82376621,0.00048598,120]
[355650321,1741435841227,-500.0,0.00048612,100]
[355650323,1741435841236,-622.2,0.0004869,2]
[355650325,1741435841246,-500.0,0.00048712,91]
[355650327,1741435841257,-1000.0,0.00048732,6]
[355650329,1741435841266,-500.0,0.00048812,98]
[355650331,1741435841275,-242.98704918,0.0004885,120]
[355650333,1741435841284,-1000.0,0.00048868,6]
[355650335,1741435841294,-1999.98,0.00048898,120]
[355650336,1741435841304,-500.0,0.00048912,91]
[355650338,1741435841314,-508.39307774,0.00048973,10]
[355650341,1741435841325,-500.0,0.00048973,10]
[355650342,1741435841335,-500.0,0.00048973,10]
[355650344,1741435841345,-500.0,0.00048973,10]
[355650346,1741435841354,-500.0,0.00048973,10]
[355650348,1741435841364,-607.92363618,0.00048973,10]
[355650350,1741435841374,-500.0,0.00048973,10]
[355650352,1741435841383,-500.0,0.00048973,10]
[355650354,1741435841392,-500.0,0.00048973,10]
[355650356,1741435841403,-500.0,0.00048973,10]
[355650358,1741435841412,-500.0,0.00048973,10]
[355650360,1741435841422,-160.36975611,0.00048973,2]
[355650362,1741435841431,-500.0,0.00048973,2]
[355650364,1741435841441,-500.0,0.00048973,10]
[355650366,1741435841451,-500.0,0.00048973,10]
[355650368,1741435841462,-500.0,0.00048973,10]
[355650369,1741435841471,-500.0,0.00048973,10]
[355650372,1741435841482,-500.0,0.00048973,10]
[355650373,1741435841492,-999.0,0.00048981,120]
[355650375,1741435841502,-617.55481849,0.00049,120]
[355650377,1741435841513,-150.07165339,0.00049,120]
[355650379,1741435841523,-1000.0,0.00049,120]
[355650381,1741435841533,-1000.0,0.00049,2]
[355650383,1741435841543,-7792.59919794,0.00049,30]
[355650385,1741435841553,-382.61157457,0.00049,120]
[355650387,1741435841562,-76962.13042767,0.00049,30]
[355650392,1741435841604,-8068.9022909,0.00049,30]
[355650414,1741435841814,-326.7,0.0004799,30]
[355650417,1741435841824,-151.0,0.0004817,120]
[355650419,1741435841833,-151.0,0.00048201,120]
[355650420,1741435841843,-151.0,0.0004828,120]
[355650422,1741435841851,-998.27939651,0.00049,30]
[355650454,1741435846108,-39.27663072,0.0004827,30]
[355650455,1741435846131,-110.72336928,0.0004827,30]
[355650456,1741435846140,-151.0,0.00048289,120]
[355650457,1741435846150,-241.463178,0.000483,120]
[355650458,1741435846159,-4023.55760181,0.00049,30]
[355650467,1741435848020,756.0,0.00042,120]
[355650468,1741435850356,645.55300681,0.00044,120]
[355650469,1741435850378,110.44699319,0.00044,120]
[355650477,1741436757134,-162.297407,0.0003589,2]
[355650478,1741436757154,-595.1817493,0.0004126,2]
[355650479,1741436757177,-1629.55351594,0.000419,9]
[355650482,1741436825099,-62.74792496,0.000419,9]
[355650483,1741436825128,-162.297407,0.00044315,2]
[355650484,1741436825153,-756.0,0.00046,120]
[355650485,1741436825181,-182.2402869,0.000463,120]
[355650486,1741436825211,-1553.67921263,0.0004631,2]
[355650487,1741436825239,-197.8229718,0.000464,2]
[355650488,1741436825271,-162.01,0.000468,42]
[355650489,1741436825300,-182.24028688,0.000475,120]
[355650490,1741436825332,-229.17098034,0.00047542,2]
[355650491,1741436825354,-324.66004823,0.0004791,6]
[355650493,1741436832355,-675.33995177,0.0004791,6]
[355650494,1741436832380,-550.0,0.00047999,5]
[355650495,1741436832401,-651.64637281,0.00048,120]
[355650501,1741436853118,-104.35362719,0.00048,120]
[355650502,1741436853140,-152.0,0.00048,90]
[355650503,1741436853163,-3170.92371641,0.00048017,2]
[355650504,1741436853185,-319.72765731,0.00048017,2]
[355650505,1741436853209,-1049.0913008,0.00048019,4]
[355650506,1741436853232,-1000.0,0.00048047,6]
[355650507,1741436853255,-357.37092727,0.0004808,2]
[355650508,1741436854118,-1308.96254326,0.0004808,2]
[355650516,1741436924369,150.99999951,0.0002,120]
[355650517,1741436945089,-1653.15732775,0.00042,120]
[355650518,1741436945113,-2768.53355774,0.00043,7]
[355650519,1741436964088,-1831.68558076,0.00043,7]
[355650530,1741437001084,2120.12207554,0.00043,120]
[355650531,1741437001105,2128.77283954,0.00043,120]
[355650532,1741437001129,1256.98508492,0.00043,120]
[355650551,1741437032446,-231.8819812,0.00045947,2]
[355650552,1741437032456,-420.76726439,0.00046498,2]
[355650553,1741437032466,-17.92073441,0.000469,10]
[355650566,1741437038300,-1617.97065846,0.000469,10]
[355650567,1741437038309,-1000.31525245,0.00047,120]
[355650568,1741437038318,-601.3447221,0.00047614,2]
[355650569,1741437038328,-500.0,0.00047863,120]
[355650570,1741437038337,-436.02826743,0.000479,2]
[355650571,1741437038347,-1000.0,0.0004791,6]
[355650572,1741437038356,-1675.02801666,0.00047919,2]
[355650573,1741437038366,-272.25,0.0004799,30]
[355650574,1741437038375,-226.88,0.0004799,30]
[355650575,1741437038385,-189.07,0.0004799,30]
[355650576,1741437038394,-157.55,0.0004799,30]
[355650577,1741437038404,-787.8,0.0004799,30]
[355650578,1741437038413,-287.62,0.0004799,10]
[355650579,1741437038422,-147.62413788,0.0004799,10]
[355650580,1741437038438,-400.84586212,0.0004799,10]
[355650581,1741437038447,-457.06,0.0004799,10]
[355650582,1741437038457,-380.88,0.0004799,10]
[355650583,1741437038466,-180.0,0.00047999,2]
[355650584,1741437038476,-117937.91472151,0.00048,120]
[355650585,1741437038486,-785132.50234977,0.00048,120]
[355650586,1741437038495,-255.0,0.00048,90]
[355650587,1741437038505,-786.8184756,0.00048019,4]
[355650588,1741437038514,-1000.0,0.00048047,6]
[355650589,1741437038524,-1333.66652947,0.0004808,2]
[355650590,1741437038533,-15555.67399697,0.0004808,2]
[355650591,1741437038543,-416.66666667,0.0004808,2]
[355650592,1741437038553,-151.849708,0.0004815,120]
[355650593,1741437038562,-151.0,0.0004815,120]
[355650594,1741437038572,-151.0,0.0004817,120]
[355650595,1741437038581,-151.0,0.0004817,120]
[355650596,1741437038591,-1000.0,0.00048184,6]
[355650597,1741437038601,-161.54963,0.00048201,120]
[355650598,1741437038610,-293.433076,0.00048216,120]
[355650599,1741437038619,-4007.87309821,0.000483,120]
[355650600,1741437038629,-352.0,0.00048304,30]
[355650601,1741437038638,-316.0,0.00048304,30]
[355650602,1741437038647,-316.0,0.00048304,30]
[355650603,1741437038656,-352.0,0.00048304,30]
[355650604,1741437038666,-316.0,0.00048304,30]
[355650605,1741437038675,-321.46638058,0.00048304,30]
[355650606,1741437038685,-352.0,0.00048304,30]
[355650607,1741437038694,-352.0,0.00048304,30]
[355650608,1741437038703,-352.0,0.00048304,30]
[355650609,1741437038713,-352.0,0.00048304,30]
[355650610,1741437038722,-352.0,0.00048304,30]
[355650611,1741437038731,-352.0,0.00048304,30]
[355650612,1741437038741,-352.0,0.00048304,30]
[355650613,1741437038751,-352.0,0.00048304,30]
[355650614,1741437038760,-352.0,0.00048304,30]
[355650615,1741437038770,-352.0,0.00048304,30]
[355650616,1741437038779,-352.0,0.00048304,30]
[355650617,1741437038788,-352.0,0.00048304,30]
[355650618,1741437038798,-352.0,0.00048304,30]
[355650619,1741437038807,-352.0,0.00048304,30]
[355650620,1741437038816,-352.0,0.00048304,30]
[355650621,1741437038826,-352.0,0.00048304,30]
[355650622,1741437038837,-352.0,0.00048304,30]
[355650623,1741437038846,-352.0,0.00048304,30]
[355650624,1741437038855,-352.0,0.00048304,30]
[355650625,1741437038865,-352.0,0.00048304,30]
[355650626,1741437038875,-491.03717399,0.00048304,30]
[355650627,1741437038884,-416.66666667,0.0004832,120]
[355650628,1741437038893,-1000.0,0.00048321,6]
[355650629,1741437038903,-1000.0,0.00048458,6]
[355650630,1741437038912,-210.16284226,0.00048504,120]
[355650631,1741437038921,-999.0,0.00048506,120]
[355650632,1741437038931,-210.16284226,0.00048516,120]
[355650633,1741437038941,-5527.54013068,0.00048516,120]
[355650634,1741437038950,-1485.62824757,0.00048537,120]
[355650635,1741437038959,-4141.91188311,0.00048538,120]
[355650636,1741437038969,-210.16284226,0.00048539,120]
[355650637,1741437038979,-5527.54013068,0.00048541,120]
[355650638,1741437038988,-5527.54013068,0.00048544,120]
[355650639,1741437038998,-1485.62824757,0.00048546,120]
[355650640,1741437039007,-4141.91188311,0.00048548,120]
[355650641,1741437039016,-4141.91188311,0.00048561,120]
[355650642,1741437039026,-1485.62824757,0.00048566,120]
[355650643,1741437039035,-4141.91188311,0.00048576,120]
[355650644,1741437039045,-5527.54013068,0.00048579,120]
[355650645,1741437039054,-1485.62824757,0.00048583,120]
[355650646,1741437039063,-210.16284226,0.00048587,120]
[355650647,1741437039072,-1000.0,0.00048595,6]
[355650648,1741437039082,-802.58474361,0.00048694,2]
[355650649,1741437039096,-151.0,0.000487,29]
[355650650,1741437039106,-1000.0,0.00048732,6]
[355650651,1741437039115,-151.0,0.000488,30]
[355650652,1741437039124,-68459.29157229,0.000488,30]
[355650653,1741437039134,-1000.0,0.00048868,6]
[355650654,1741437039144,-151.0,0.00048871,2]
[355650655,1741437039153,-600.0,0.00048871,2]
[355650656,1741437039165,-237.1,0.00048872,30]
[355650657,1741437039176,-1999.97,0.00048898,120]
[355650658,1741437039185,-222000.0,0.000489,2]
[355650659,1741437039195,-1386.05,0.000489,30]
[355650660,1741437039204,-1101.14,0.000489,30]
[355650661,1741437039214,-30000.0,0.000489,2]
[355650662,1741437039223,-55555.0,0.000489,120]
[355650663,1741437039233,-500.0,0.00048973,10]
[355650664,1741437039242,-500.0,0.00048973,10]
[355650665,1741437039252,-508.39307774,0.00048973,10]
[355650666,1741437039261,-500.0,0.00048973,10]
[355650667,1741437039271,-500.0,0.00048973,10]
[355650668,1741437039280,-500.0,0.00048973,2]
[355650669,1741437039289,-500.0,0.00048973,10]
[355650670,1741437039299,-500.0,0.00048973,10]
[355650671,1741437039308,-435.54620578,0.00048973,10]
[355650672,1741437039318,-500.0,0.00048973,10]
[355650673,1741437039327,-458.81781912,0.00048973,3]
[355650674,1741437039337,-500.0,0.00048973,10]
[355650675,1741437039347,-500.0,0.00048973,10]
[355650676,1741437039356,-501.67916063,0.00048973,10]
[355650677,1741437039366,-500.0,0.00048973,2]
[355650678,1741437039376,-500.0,0.00048973,10]
[355650679,1741437039386,-500.0,0.00048973,10]
[355650680,1741437039395,-30720.51313451,0.00049,30]
[355650681,1741437039405,-120773.3828514,0.00049,30]
[355650682,1741437039415,-19240.53260691,0.00049,30]
[355650683,1741437039424,-19240.53260691,0.00049,30]
[355650684,1741437039433,-416.66666667,0.00049,30]
[355650685,1741437039443,-2064.63646016,0.00049,30]
[355650686,1741437039452,-2038.90074751,0.00049,120]
[355650687,1741437039462,-617.55481849,0.00049,120]
[355650688,1741437039471,-144856.67408324,0.00049,120]
[355650689,1741437039480,-8467.76206172,0.00049,120]
[355650690,1741437039490,-7263.0,0.00049,2]
[355650691,1741437039499,-500.0,0.00049012,92]
[355650692,1741437039508,-7792.59919794,0.00049044,30]
[355650693,1741437039518,-2064.63646016,0.00049044,30]
[355650694,1741437039528,-500.0,0.00049112,100]
[355650695,1741437039537,-509.0,0.0004919,120]
[355650696,1741437039546,-500.0,0.00049212,94]
[355650697,1741437039556,-10011.35161944,0.00049215,2]
[355650698,1741437039565,-1295.176433,0.0004928,21]
[355650699,1741437039576,-1000.0,0.000493,21]
[355650700,1741437039586,-500.095823,0.000493,114]
[355650701,1741437039595,-3000.0,0.00049312,2]
[355650702,1741437039606,-500.0,0.00049312,95]
[355650703,1741437039615,-500.0,0.00049315,120]
[355650704,1741437039625,-285.78188656,0.00049315,2]
[355650705,1741437039635,-416.66666667,0.00049315,3]
[355650706,1741437039645,-416.66666667,0.00049315,7]
[355650707,1741437039654,-500.0,0.00049315,120]
[355650708,1741437039664,-500.0,0.00049315,120]
[355650709,1741437039673,-500.0,0.00049315,120]
[355650710,1741437039682,-500.0,0.00049315,120]
[355650711,1741437039692,-500.0,0.00049315,120]
[355650712,1741437039702,-500.0,0.00049315,120]
[355650713,1741437039712,-500.0,0.00049315,120]
[355650714,1741437039721,-500.0,0.00049315,120]
[355650715,1741437039730,-500.0,0.00049315,120]
[355650716,1741437039740,-500.0,0.00049315,120]
[355650717,1741437039749,-537.12330089,0.00049315,120]
[355650718,1741437039759,-500.0,0.00049315,120]
[355650719,1741437039769,-333.0737851,0.00049315,120]
[355650720,1741437039778,-393.42681778,0.00049315,120]
[355650721,1741437039787,-500.0,0.00049315,120]
[355650722,1741437039796,-500.0,0.00049315,120]
[355650724,1741437039806,-500.0,0.00049315,120]
[355650725,1741437039815,-500.0,0.00049315,120]
[355650726,1741437039825,-500.0,0.00049315,120]
[355650727,1741437039834,-500.0,0.00049315,120]
[355650728,1741437039843,-500.0,0.00049315,120]
[355650729,1741437039854,-500.0,0.00049315,120]
[355650730,1741437039863,-590.23,0.00049315,120]
[355650731,1741437039872,-500.0,0.00049315,120]
[355650733,1741437039889,-500.0,0.00049315,120]
[355650735,1741437039899,-500.0,0.00049315,2]
[355650736,1741437039909,-4020.97,0.00049315,120]
[355650737,1741437039918,-1641.94,0.00049315,120]
[355650739,1741437039928,-1641.94,0.00049315,120]
[355650740,1741437039937,-1641.94,0.00049315,120]
[355650741,1741437039947,-1641.94,0.00049315,120]
[355650742,1741437039956,-1641.94,0.00049315,120]
[355650743,1741437039965,-1641.94,0.00049315,120]
[355650744,1741437039975,-1641.94,0.00049315,120]
[355650745,1741437039986,-1641.94,0.00049315,120]
[355650746,1741437039996,-1641.94,0.00049315,120]
[355650747,1741437040006,-1641.94,0.00049315,120]
[355650748,1741437040015,-1641.94,0.00049315,120]
[355650749,1741437040024,-1641.94,0.00049315,120]
[355650750,1741437040034,-1641.94,0.00049315,120]
[355650751,1741437040043,-1641.94,0.00049315,120]
[355650752,1741437040053,-1641.94,0.00049315,120]
[355650754,1741437040062,-1641.94,0.00049315,120]
[355650755,1741437040072,-1641.94,0.00049315,120]
[355650756,1741437040087,-1641.94,0.00049315,120]
[355650757,1741437040096,-1641.94,0.00049315,120]
[355650758,1741437040108,-1641.94,0.00049315,120]
[355650759,1741437040118,-1641.94,0.00049315,120]
[355650761,1741437040127,-1641.94,0.00049315,120]
[355650763,1741437040137,-1641.94,0.00049315,120]
[355650765,1741437040146,-1642.04832079,0.00049315,120]
[355650767,1741437040242,-500.0,0.00049315,120]
[355650768,1741437040253,-515.91275467,0.00049315,120]
[355650770,1741437040262,-500.0,0.00049315,120]
[355650771,1741437040272,-500.0,0.00049315,120]
[355650772,1741437040281,-500.0,0.00049315,120]
[355650773,1741437040290,-500.0,0.00049315,5]
[355650774,1741437040299,-500.0,0.00049315,120]
[355650775,1741437040309,-500.0,0.00049315,120]
[355650777,1741437040318,-222.827466,0.00049315,120]
[355650778,1741437040327,-510.39131851,0.00049315,120]
[355650779,1741437040336,-500.0,0.00049315,120]
[355650780,1741437040345,-554.21590053,0.00049315,120]
[355650781,1741437040356,-500.0,0.00049315,120]
[355650782,1741437040365,-734.76,0.00049315,120]
[355650783,1741437040374,-235.2246693,0.00049315,120]
[355650784,1741437040384,-500.0,0.00049315,120]
[355650785,1741437040393,-450.83335965,0.00049315,120]
[355650786,1741437040402,-2000.0,0.00049315,120]
[355650787,1741437040412,-500.0,0.00049315,120]
[355650788,1741437040421,-322.06144267,0.00049315,5]
[355650789,1741437040430,-520.18476513,0.00049315,120]
[355650790,1741437040439,-516.93947988,0.00049315,120]
[355650791,1741437040448,-879.37,0.00049315,120]
[355650792,1741437040457,-879.37,0.00049315,120]
[355650793,1741437040466,-879.37,0.00049315,120]
[355650794,1741437040475,-879.37,0.00049315,120]
[355650795,1741437040484,-879.37,0.00049315,120]
[355650796,1741437040493,-879.37,0.00049315,120]
[355650797,1741437040503,-879.37,0.00049315,120]
[355650798,1741437040511,-879.37,0.00049315,120]
[355650799,1741437040520,-879.37,0.00049315,120]
[355650800,1741437040529,-879.37,0.00049315,120]
[355650801,1741437040538,-879.37,0.00049315,120]
[355650802,1741437040547,-879.37,0.00049315,120]
[355650804,1741437040557,-879.37,0.00049315,120]
[355650806,1741437040566,-879.37,0.00049315,120]
[355650808,1741437040575,-879.37,0.00049315,120]
[355650809,1741437040585,-879.37,0.00049315,120]
[355650810,1741437040594,-879.37,0.00049315,120]
[355650811,1741437040605,-879.37,0.00049315,120]
[355650812,1741437040614,-879.37,0.00049315,120]
[355650813,1741437040624,-879.37,0.00049315,120]
[355650814,1741437040633,-879.37,0.00049315,120]
[355650815,1741437040641,-879.37,0.00049315,120]
[355650816,1741437040651,-879.37,0.00049315,120]
[355650817,1741437040661,-879.38935448,0.00049315,120]
[355650818,1741437040670,-535.74191994,0.00049315,120]
[355650819,1741437040679,-500.0,0.00049315,120]
[355650820,1741437040689,-533.54438792,0.00049315,120]
[355650821,1741437040698,-500.0,0.00049315,120]
[355650822,1741437040707,-500.0,0.00049315,120]
[355650823,1741437040717,-1000.0,0.00049315,120]
[355650824,1741437040726,-1000.0,0.00049315,120]
[355650825,1741437040735,-1000.0,0.00049315,120]
[355650826,1741437040744,-1000.0,0.00049315,120]
[355650827,1741437040753,-1000.0,0.00049315,120]
[355650828,1741437040763,-1000.0,0.00049315,120]
[355650829,1741437040772,-1000.0,0.00049315,120]
[355650830,1741437040781,-1000.0,0.00049315,120]
[355650831,1741437040791,-1000.0,0.00049315,120]
[355650832,1741437040801,-1000.0,0.00049315,120]
[355650833,1741437040811,-1000.0,0.00049315,120]
[355650834,1741437040820,-1000.0,0.00049315,120]
[355650835,1741437040830,-538.58415534,0.00049315,120]
[355650836,1741437040839,-500.0,0.00049315,120]
[355650837,1741437040849,-564.24398665,0.00049315,120]
[355650838,1741437040858,-530.95530588,0.00049315,120]
[355650839,1741437040868,-500.0,0.00049315,120]
[355650840,1741437040878,-500.0,0.00049315,120]
[355650841,1741437040887,-500.0,0.00049315,120]
[355650842,1741437040896,-500.0,0.00049315,120]
[355650843,1741437040907,-513.97387247,0.00049315,120]
[355650844,1741437040916,-511.00117257,0.00049315,120]
[355650845,1741437040925,-500.0,0.00049315,120]
[355650846,1741437040935,-500.0,0.00049315,120]
[355650847,1741437040944,-500.0,0.00049315,120]
[355650848,1741437040953,-500.0,0.00049315,120]
[355650849,1741437040963,-500.0,0.00049315,120]
[355650850,1741437040972,-500.0,0.00049315,120]
[355650851,1741437040981,-3256.79,0.00049315,120]
[355650852,1741437040990,-833.51,0.00049315,120]
[355650853,1741437041000,-598.79,0.00049315,120]
[355650854,1741437041009,-833.51,0.00049315,120]
[355650855,1741437041018,-833.51,0.00049315,120]
[355650856,1741437041027,-1202.25,0.00049315,120]
[355650857,1741437041036,-833.51,0.00049315,120]
[355650858,1741437041046,-833.51,0.00049315,120]
[355650859,1741437041055,-833.51,0.00049315,120]
[355650860,1741437041065,-833.51,0.00049315,120]
[355650861,1741437041075,-833.51,0.00049315,120]
[355650862,1741437041084,-833.51,0.00049315,120]
[355650863,1741437041096,-833.51,0.00049315,120]
[355650864,1741437041107,-833.51,0.00049315,120]
[355650865,1741437041118,-833.51,0.00049315,120]
[355650866,1741437041127,-833.51,0.00049315,120]
[355650867,1741437041137,-833.51,0.00049315,120]
[355650868,1741437041147,-833.51,0.00049315,120]
[355650869,1741437041156,-833.51,0.00049315,120]
[355650870,1741437041167,-833.51,0.00049315,120]
[355650871,1741437041176,-833.51,0.00049315,120]
[355650872,1741437041186,-833.51,0.00049315,120]